fUSD/lending_fUSD_20250416
["ID","MTS","AMOUNT","RATE_DAILY","PERIOD"]
[358198416,1744830642422,-1172.38,0.00055475,120]
[358198419,1744830642432,-500.0,0.00055475,120]
[358198421,1744830642442,-500.0,0.00055475,120]
[358198423,1744830642451,-500.0,0.00055475,120]
[358198425,1744830642461,-311.9086471,0.00055475,120]
[358198426,1744830642471,-500.0,0.00055475,14]
[358198428,1744830642480,-232.61836196,0.00055475,120]
[358198430,1744830642489,-500.0,0.00055475,120]
[358198432,1744830642498,-500.0,0.00055475,120]
[358198434,1744830642508,-500.0,0.00055475,120]
[358198436,1744830642517,-500.0,0.00055475,120]
[358198438,1744830642526,-500.0,0.00055475,120]
[358198440,1744830642535,-500.0,0.00055475,120]
[358198442,1744830642544,-500.0,0.00055475,120]
[358198444,1744830642554,-500.0,0.00055475,120]
[358198446,1744830642564,-151.0,0.00055475,120]
[358198448,1744830642574,-500.0,0.00055475,120]
[358198450,1744830642583,-151.0,0.00055475,120]
[358198452,1744830642592,-500.0,0.00055475,120]
[358198454,1744830642602,-151.0,0.00055475,120]
[358198456,1744830642616,-500.0,0.00055475,120]
[358198458,1744830642625,-500.0,0.00055475,120]
[358198460,1744830642634,-151.0,0.00055475,120]
[358198462,1744830642644,-295.005798,0.00055475,120]
[358198465,1744830642655,-295.005798,0.00055475,120]
[358198466,1744830642664,-153.556503,0.00055475,120]
[358198468,1744830642673,-151.0,0.00055475,120]
[358198470,1744830642683,-151.0,0.00055475,120]
[358198472,1744830642693,-500.0,0.00055475,120]
[358198474,1744830642703,-151.0,0.00055475,120]
[358198476,1744830642712,-500.0,0.00055475,120]
[358198478,1744830642721,-666.2,0.00055475,120]
[358198480,1744830642731,-500.0,0.00055475,120]
[358198482,1744830642740,-288.970482,0.00055475,120]
[358198484,1744830642749,-288.970482,0.00055475,120]
[358198486,1744830642758,-151.0,0.00055475,120]
[358198488,1744830642767,-151.0,0.00055475,120]
[358198490,1744830642777,-150.0,0.00055475,14]
[358198492,1744830642786,-500.0,0.00055477,120]
[358198494,1744830642795,-715.77,0.00055477,120]
[358198496,1744830642804,-575.02562134,0.00055477,120]
[358198498,1744830642813,-500.0,0.00055477,30]
[358198500,1744830642823,-500.0,0.00055477,120]
[358198502,1744830642832,-500.0,0.00055477,120]
[358198504,1744830642841,-500.0,0.00055477,120]
[358198506,1744830642851,-500.0,0.00055477,120]
[358198508,1744830642861,-500.0,0.00055477,120]
[358198510,1744830642871,-500.0,0.00055477,120]
[358198512,1744830642880,-500.0,0.00055477,120]
[358198514,1744830642890,-500.0,0.00055477,120]
[358198516,1744830642899,-500.0,0.00055477,120]
[358198518,1744830642908,-500.0,0.00055477,120]
[358198520,1744830642918,-500.0,0.00055477,120]
[358198522,1744830642927,-151.0,0.00055477,120]
[358198524,1744830642937,-500.0,0.00055477,120]
[358198526,1744830642946,-151.0,0.00055477,120]
[358198528,1744830642955,-151.0,0.00055477,120]
[358198530,1744830642964,-151.0,0.00055477,120]
[358198532,1744830642974,-500.0,0.00055477,120]
[358198534,1744830642983,-151.0,0.00055477,120]
[358198536,1744830642992,-151.0,0.00055477,120]
[358198538,1744830643001,-500.0,0.00055477,120]
[358198540,1744830643011,-151.0,0.00055477,120]
[358198542,1744830643020,-500.0,0.00055477,120]
[358198544,1744830643029,-500.0,0.00055477,120]
[358198546,1744830643038,-500.0,0.00055478,120]
[358198548,1744830643047,-3179.0,0.00055479,25]
[358198550,1744830643057,-500.0,0.00055479,120]
[358198552,1744830643066,-1045.42,0.00055479,120]
[358198554,1744830643076,-500.0,0.00055479,120]
[358198556,1744830643085,-500.0,0.00055479,120]
[358198558,1744830643095,-1516.88,0.00055479,120]
[358198560,1744830643107,-7959.04,0.00055479,120]
[358198562,1744830643116,-968.88,0.00055479,120]
[358198565,1744830643125,-500.0,0.00055479,120]
[358198568,1744830643134,-500.0,0.00055479,120]
[358198571,1744830643144,-500.0,0.00055479,120]
[358198574,1744830643153,-1192.3,0.00055479,120]
[358198578,1744830643163,-1579.3,0.00055479,120]
[358198582,1744830643172,-771.18,0.00055479,8]
[358198584,1744830643183,-1172.38,0.00055479,120]
[358198587,1744830643192,-500.0,0.00055479,120]
[358198591,1744830643201,-500.0,0.00055479,120]
[358198595,1744830643211,-500.0,0.00055479,120]
[358198598,1744830643220,-500.0,0.00055479,120]
[358198600,1744830643229,-500.0,0.00055479,120]
[358198602,1744830643238,-500.0,0.00055479,120]
[358198604,1744830643247,-500.0,0.00055479,120]
[358198606,1744830643256,-500.0,0.00055479,120]
[358198607,1744830643266,-610.08,0.00055479,120]
[358198609,1744830643275,-500.0,0.00055479,120]
[358198611,1744830643285,-500.0,0.00055479,120]
[358198613,1744830643295,-500.0,0.00055479,120]
[358198615,1744830643305,-500.0,0.00055479,120]
[358198617,1744830643315,-500.0,0.00055479,120]
[358198619,1744830643325,-326.77968167,0.00055479,120]
[358198621,1744830643335,-622.15,0.00055479,120]
[358198623,1744830643345,-500.0,0.00055479,120]
[358198625,1744830643356,-500.0,0.00055479,120]
[358198627,1744830643365,-500.0,0.00055479,120]
[358198629,1744830643376,-500.0,0.00055479,120]
[358198631,1744830643388,-525.94,0.00055479,120]
[358198633,1744830643398,-500.0,0.00055479,120]
[358198635,1744830643407,-500.0,0.00055479,120]
[358198637,1744830643417,-524.17,0.00055479,120]
[358198639,1744830643426,-500.0,0.00055479,120]
[358198641,1744830643436,-500.0,0.00055479,120]
[358198643,1744830643447,-500.0,0.00055479,120]
[358198645,1744830643456,-500.0,0.00055479,120]
[358198647,1744830643466,-500.0,0.00055479,120]
[358198649,1744830643475,-680.35,0.00055479,120]
[358198651,1744830643485,-500.0,0.00055479,120]
[358198653,1744830643494,-500.0,0.00055479,120]
[358198655,1744830643503,-500.0,0.00055479,120]
[358198657,1744830643513,-500.0,0.00055479,120]
[358198658,1744830643522,-500.0,0.00055479,120]
[358198660,1744830643532,-763.58,0.00055479,120]
[358198662,1744830643541,-500.0,0.00055479,120]
[358198664,1744830643551,-500.0,0.00055479,120]
[358198666,1744830643561,-2516.51,0.00055479,120]
[358198668,1744830643570,-500.0,0.00055479,120]
[358198670,1744830643580,-1799.29,0.00055479,120]
[358198672,1744830643591,-500.0,0.00055479,120]
[358198674,1744830643600,-906.19,0.00055479,120]
[358198676,1744830643619,-500.0,0.00055479,120]
[358198678,1744830643629,-633.91,0.00055479,120]
[358198680,1744830643638,-500.0,0.00055479,120]
[358198682,1744830643648,-4616.81,0.00055479,120]
[358198684,1744830643658,-500.0,0.00055479,120]
[358198686,1744830643668,-150.0,0.00055479,120]
[358198688,1744830643677,-500.0,0.0005548,120]
[358198690,1744830643688,-715.77,0.0005548,120]
[358198692,1744830643698,-500.0,0.0005548,120]
[358198694,1744830643707,-382.77131719,0.0005548,120]
[358198696,1744830643716,-500.0,0.0005548,120]
[358198698,1744830643726,-500.0,0.0005548,120]
[358198699,1744830643735,-500.0,0.0005548,120]
[358198701,1744830643745,-500.0,0.0005548,14]
[358198703,1744830643755,-500.0,0.0005548,120]
[358198705,1744830643764,-258.60729984,0.0005548,120]
[358198707,1744830643773,-151.595239,0.0005548,120]
[358198709,1744830643783,-151.0,0.0005548,120]
[358198711,1744830643794,-500.0,0.0005548,120]
[358198713,1744830643804,-224.74205,0.0005548,120]
[358198715,1744830643813,-151.0,0.0005548,120]
[358198717,1744830643822,-151.0,0.0005548,120]
[358198719,1744830643832,-500.0,0.0005548,120]
[358198721,1744830643841,-500.0,0.0005548,120]
[358198723,1744830643850,-500.0,0.0005548,120]
[358198725,1744830643861,-500.0,0.0005548,120]
[358198727,1744830643871,-500.0,0.0005548,120]
[358198729,1744830643880,-500.0,0.0005548,120]
[358198731,1744830643889,-151.0,0.0005548,30]
[358198733,1744830643898,-500.0,0.0005548,120]
[358198735,1744830643908,-151.434378,0.0005548,120]
[358198737,1744830643919,-151.0,0.0005548,120]
[358198739,1744830643928,-151.0,0.0005548,120]
[358198741,1744830643938,-151.0,0.0005548,120]
[358198743,1744830643947,-368.849452,0.0005548,120]
[358198745,1744830643957,-500.0,0.0005548,120]
[358198747,1744830643966,-151.0,0.0005548,120]
[358198749,1744830643975,-151.0,0.0005548,120]
[358198751,1744830643984,-500.0,0.0005548,120]
[358198753,1744830643994,-500.0,0.0005548,120]
[358198755,1744830644003,-500.0,0.0005548,120]
[358198757,1744830644012,-554.43946847,0.0005548,120]
[358198759,1744830644022,-516.36155953,0.0005548,120]
[358198761,1744830644031,-500.0,0.0005548,120]
[358198763,1744830644040,-666.2,0.0005548,120]
[358198765,1744830644049,-500.0,0.0005548,120]
[358198767,1744830644058,-151.0,0.0005548,120]
[358198769,1744830644068,-151.0,0.0005548,120]
[358198771,1744830644077,-151.0,0.0005548,120]
[358198773,1744830644086,-151.739543,0.0005548,120]
[358198775,1744830644096,-151.0,0.0005548,120]
[358198777,1744830644105,-151.0,0.0005548,120]
[358198779,1744830644115,-151.0,0.0005548,120]
[358198781,1744830644124,-263.357729,0.0005548,120]
[358198782,1744830644136,-151.0,0.0005548,120]
[358198784,1744830644145,-151.0,0.0005548,120]
[358198786,1744830644154,-151.0,0.0005548,120]
[358198788,1744830644163,-500.0,0.0005548,120]
[358198790,1744830644173,-155.99304,0.0005548,120]
[358198792,1744830644182,-500.0,0.0005548,120]
[358198794,1744830644191,-151.0,0.0005548,120]
[358198796,1744830644200,-227.077897,0.0005548,120]
[358198798,1744830644210,-227.077897,0.0005548,120]
[358198800,1744830644219,-151.0,0.0005548,120]
[358198802,1744830644228,-273.8245,0.0005548,120]
[358198804,1744830644237,-273.8245,0.0005548,120]
[358198806,1744830644246,-151.0,0.0005548,120]
[358198808,1744830644256,-151.0,0.0005548,120]
[358198810,1744830644265,-151.0,0.0005548,120]
[358198812,1744830644274,-151.0,0.0005548,120]
[358198814,1744830644283,-293.014207,0.0005548,120]
[358198816,1744830644292,-500.0,0.0005548,120]
[358198818,1744830644301,-192.240046,0.0005548,120]
[358198820,1744830644310,-500.0,0.0005548,120]
[358198821,1744830644319,-643.77,0.00055482,120]
[358198823,1744830644328,-500.0,0.00055482,120]
[358198825,1744830644337,-635.32,0.00055483,120]
[358198827,1744830644345,-509.71,0.00055483,120]
[358198829,1744830644353,-20221.93424613,0.00055483,7]
[358198838,1744830644429,-69202.723189,0.00055483,7]
[358198840,1744830644440,-5707.45867025,0.00055483,7]
[358198842,1744830644452,-7342.57998496,0.00055483,7]
[358198844,1744830644462,-11157.38489646,0.00055483,7]
[358198846,1744830644474,-1042.82955653,0.00055483,7]
[358198849,1744830644489,-33878.18945667,0.00055483,7]
[358198851,1744830644498,-520.32,0.00055483,120]
[358198853,1744830644506,-583.81927772,0.00055483,120]
[358198855,1744830644515,-500.0,0.00055483,120]
[358198857,1744830644525,-1396.29,0.00055483,2]
[358198859,1744830644534,-151.0,0.00055483,120]
[358198861,1744830644543,-162.319674,0.00055483,120]
[358198863,1744830644552,-151.0,0.00055483,120]
[358198864,1744830644561,-151.0,0.00055483,120]
[358198866,1744830644571,-500.0,0.00055483,120]
[358198868,1744830644581,-151.0,0.00055483,120]
[358198870,1744830644591,-2341.209607,0.00055483,120]
[358198872,1744830644599,-500.0,0.00055483,120]
[358198874,1744830644614,-2341.209607,0.00055483,120]
[358198876,1744830644624,-204.47,0.00055483,120]
[358198878,1744830644633,-2578.79,0.00055483,120]
[358198880,1744830644643,-151.0,0.00055483,120]
[358198882,1744830644652,-151.0,0.00055483,120]
[358198884,1744830644662,-151.0,0.00055483,120]
[358198886,1744830644671,-500.0,0.00055483,120]
[358198888,1744830644681,-500.0,0.00055483,120]
[358198890,1744830644691,-1618.29,0.00055483,120]
[358198892,1744830644701,-7959.04,0.00055484,120]
[358198894,1744830644711,-968.88,0.00055484,120]
[358198896,1744830644721,-500.0,0.00055484,120]
[358198898,1744830644730,-500.0,0.00055484,120]
[358198900,1744830644740,-500.0,0.00055484,120]
[358198901,1744830644750,-190.49231573,0.00055484,120]
[358198903,1744830644759,-524.17,0.00055484,120]
[358198905,1744830644769,-500.0,0.00055484,120]
[358198907,1744830644778,-500.0,0.00055484,120]
[358198909,1744830644788,-500.0,0.00055484,120]
[358198911,1744830644797,-643.77,0.00055484,120]
[358198913,1744830644807,-500.0,0.00055484,120]
[358198915,1744830644816,-2049.75472266,0.00055485,2]
[358198917,1744830644825,-500.0,0.00055485,120]
[358198919,1744830644835,-715.77,0.00055485,120]
[358198921,1744830644844,-500.0,0.00055485,120]
[358198923,1744830644854,-1045.42,0.00055485,120]
[358198925,1744830644870,-500.0,0.00055485,120]
[358198927,1744830644880,-500.0,0.00055485,120]
[358198929,1744830644890,-500.0,0.00055485,120]
[358198931,1744830644899,-1516.88,0.00055485,120]
[358198933,1744830644910,-7959.04,0.00055485,120]
[358198935,1744830644919,-968.88,0.00055485,120]
[358198937,1744830644929,-500.0,0.00055485,120]
[358198939,1744830644938,-500.0,0.00055485,120]
[358198941,1744830644948,-500.0,0.00055485,120]
[358198943,1744830644958,-1192.3,0.00055485,120]
[358198945,1744830644967,-1579.3,0.00055485,120]
[358198947,1744830644976,-771.18,0.00055485,8]
[358198948,1744830644985,-1172.38,0.00055485,120]
[358198950,1744830644995,-500.0,0.00055485,120]
[358198952,1744830645005,-500.0,0.00055485,120]
[358198954,1744830645015,-500.0,0.00055485,120]
[358198956,1744830645025,-179.8330183,0.00055485,120]
[358198958,1744830645034,-500.0,0.00055485,120]
[358198960,1744830645044,-500.0,0.00055485,120]
[358198962,1744830645054,-500.0,0.00055485,120]
[358198964,1744830645063,-500.0,0.00055485,120]
[358198966,1744830645073,-500.0,0.00055485,120]
[358198968,1744830645083,-500.0,0.00055485,120]
[358198970,1744830645094,-303.33019076,0.00055485,120]
[358198972,1744830645103,-500.0,0.00055485,120]
[358198974,1744830645115,-500.0,0.00055485,120]
[358198976,1744830645124,-500.0,0.00055485,120]
[358198978,1744830645133,-610.08,0.00055485,120]
[358198980,1744830645143,-610.08,0.00055485,120]
[358198982,1744830645152,-500.0,0.00055485,120]
[358198984,1744830645162,-500.0,0.00055485,120]
[358198986,1744830645171,-500.0,0.00055485,120]
[358198988,1744830645180,-500.0,0.00055485,120]
[358198990,1744830645189,-500.0,0.00055485,120]
[358198992,1744830645198,-500.0,0.00055485,120]
[358198994,1744830645207,-500.0,0.00055485,120]
[358198996,1744830645217,-500.0,0.00055485,120]
[358198998,1744830645227,-500.0,0.00055485,120]
[358199000,1744830645236,-622.15,0.00055485,120]
[358199002,1744830645245,-622.15,0.00055485,120]
[358199004,1744830645255,-500.0,0.00055485,120]
[358199006,1744830645265,-627.23,0.00055485,120]
[358199008,1744830645274,-500.0,0.00055485,120]
[358199009,1744830645283,-500.0,0.00055485,120]
[358199011,1744830645292,-151.0,0.00055485,120]
[358199013,1744830645301,-151.0,0.00055485,120]
[358199015,1744830645310,-500.0,0.00055485,120]
[358199017,1744830645319,-500.0,0.00055485,120]
[358199019,1744830645330,-500.0,0.00055485,120]
[358199021,1744830645340,-500.0,0.00055485,120]
[358199023,1744830645351,-500.0,0.00055485,120]
[358199025,1744830645367,-151.0,0.00055485,120]
[358199027,1744830645377,-525.94,0.00055485,120]
[358199029,1744830645389,-525.94,0.00055485,120]
[358199031,1744830645399,-151.0,0.00055485,120]
[358199032,1744830645410,-500.0,0.00055485,120]
[358199033,1744830645422,-500.0,0.00055485,120]
[358199034,1744830645433,-295.005798,0.00055485,120]
[358199035,1744830645444,-635.32,0.00055485,120]
[358199036,1744830645455,-295.005798,0.00055485,120]
[358199037,1744830645466,-151.0,0.00055485,120]
[358199038,1744830645477,-160.780589,0.00055485,120]
[358199039,1744830645487,-151.0,0.00055485,120]
[358199040,1744830645498,-152.978973,0.00055485,120]
[358199041,1744830645508,-500.0,0.00055485,120]
[358199042,1744830645520,-288.970482,0.00055485,120]
[358199043,1744830645530,-500.0,0.00055485,120]
[358199044,1744830645540,-151.0,0.00055485,120]
[358199045,1744830645549,-288.970482,0.00055485,120]
[358199046,1744830645559,-509.71,0.00055485,120]
[358199047,1744830645569,-524.17,0.00055485,120]
[358199048,1744830645579,-162.415958,0.00055485,120]
[358199049,1744830645589,-500.0,0.00055485,120]
[358199050,1744830645598,-151.0,0.00055485,120]
[358199052,1744830645615,-151.0,0.00055485,120]
[358199054,1744830645624,-148553.1,0.00055485,7]
[358199056,1744830645633,-322.98611099,0.00055485,120]
[358199058,1744830645642,-500.0,0.00055485,120]
[358199060,1744830645652,-500.0,0.00055485,120]
[358199062,1744830645663,-500.0,0.00055485,120]
[358199064,1744830645672,-500.0,0.00055485,120]
[358199066,1744830645683,-500.0,0.00055485,120]
[358199068,1744830645692,-680.35,0.00055485,120]
[358199070,1744830645703,-680.35,0.00055485,120]
[358199072,1744830645712,-520.32,0.00055485,120]
[358199074,1744830645723,-500.0,0.00055485,120]
[358199076,1744830645733,-500.0,0.00055485,120]
[358199078,1744830645742,-151.0,0.00055485,120]
[358199080,1744830645752,-151.0,0.00055485,120]
[358199082,1744830645762,-500.0,0.00055485,120]
[358199084,1744830645772,-500.0,0.00055485,120]
[358199086,1744830645781,-500.0,0.00055485,120]
[358199088,1744830645792,-151.0,0.00055485,120]
[358199089,1744830645803,-1396.29,0.00055485,2]
[358199091,1744830645814,-500.0,0.00055485,120]
[358199093,1744830645824,-500.0,0.00055485,120]
[358199095,1744830645833,-500.0,0.00055485,120]
[358199097,1744830645843,-500.0,0.00055485,120]
[358199099,1744830645852,-500.0,0.00055485,120]
[358199101,1744830645865,-500.0,0.00055485,120]
[358199103,1744830645875,-500.0,0.00055485,120]
[358199105,1744830645884,-500.0,0.00055485,120]
[358199107,1744830645894,-763.58,0.00055485,120]
[358199109,1744830645904,-763.58,0.00055485,120]
[358199111,1744830645913,-500.0,0.00055485,120]
[358199113,1744830645924,-500.0,0.00055485,120]
[358199115,1744830645933,-500.0,0.00055485,120]
[358199117,1744830645943,-500.0,0.00055485,120]
[358199119,1744830645952,-500.0,0.00055485,120]
[358199121,1744830645962,-500.0,0.00055485,120]
[358199123,1744830645972,-2516.51,0.00055485,120]
[358199125,1744830645982,-2516.51,0.00055485,120]
[358199127,1744830645991,-500.0,0.00055485,120]
[358199130,1744830646001,-500.0,0.00055485,120]
[358199133,1744830646012,-2578.79,0.00055485,120]
[358199136,1744830646022,-1799.29,0.00055485,120]
[358199137,1744830646031,-1799.29,0.00055485,120]
[358199139,1744830646040,-500.0,0.00055485,120]
[358199141,1744830646049,-500.0,0.00055485,120]
[358199143,1744830646059,-500.0,0.00055485,120]
[358199145,1744830646068,-906.19,0.00055485,120]
[358199147,1744830646078,-906.19,0.00055485,120]
[358199149,1744830646087,-151.0,0.00055485,120]
[358199152,1744830646097,-500.0,0.00055485,120]
[358199154,1744830646107,-633.91,0.00055485,120]
[358199157,1744830646116,-633.91,0.00055485,120]
[358199160,1744830646126,-500.0,0.00055485,120]
[358199162,1744830646139,-500.0,0.00055485,120]
[358199164,1744830646150,-500.0,0.00055485,120]
[358199166,1744830646159,-500.0,0.00055485,120]
[358199168,1744830646168,-4616.81,0.00055485,120]
[358199171,1744830646177,-4616.81,0.00055485,120]
[358199174,1744830646186,-500.0,0.00055485,120]
[358199176,1744830646195,-500.0,0.00055485,120]
[358199178,1744830646204,-500.0,0.00055486,120]
[358199180,1744830646214,-715.77,0.00055486,120]
[358199182,1744830646224,-151.0,0.00055486,120]
[358199184,1744830646234,-151.0,0.00055486,120]
[358199186,1744830646243,-151.0,0.00055486,120]
[358199188,1744830646252,-314.08293672,0.00055486,120]
[358199190,1744830646262,-151.0,0.00055486,120]
[358199192,1744830646272,-154.654953,0.00055486,120]
[358199194,1744830646281,-151.0,0.00055486,120]
[358199196,1744830646291,-500.0,0.00055486,120]
[358199199,1744830646301,-500.0,0.00055486,120]
[358199201,1744830646312,-151.0,0.00055486,120]
[358199203,1744830646322,-151.0,0.00055486,120]
[358199205,1744830646332,-151.0,0.00055486,120]
[358199207,1744830646341,-151.0,0.00055486,120]
[358199209,1744830646358,-151.0,0.00055486,120]
[358199211,1744830646368,-151.0,0.00055486,120]
[358199213,1744830646378,-151.0,0.00055486,120]
[358199215,1744830646387,-151.0,0.00055486,120]
[358199217,1744830646397,-151.0,0.00055486,120]
[358199219,1744830646406,-151.0,0.00055486,120]
[358199221,1744830646415,-151.0,0.00055486,120]
[358199223,1744830646424,-151.0,0.00055486,120]
[358199225,1744830646434,-151.0,0.00055486,120]
[358199227,1744830646444,-151.0,0.00055486,120]
[358199229,1744830646453,-151.0,0.00055486,120]
[358199231,1744830646463,-151.0,0.00055486,120]
[358199233,1744830646472,-191.384169,0.00055486,120]
[358199235,1744830646482,-191.384169,0.00055486,120]
[358199237,1744830646491,-151.0,0.00055486,120]
[358199239,1744830646501,-151.0,0.00055486,120]
[358199241,1744830646511,-500.0,0.00055486,120]
[358199243,1744830646520,-500.0,0.00055486,120]
[358199245,1744830646529,-510.79594627,0.00055486,120]
[358199247,1744830646538,-151.0,0.00055486,120]
[358199249,1744830646548,-151.0,0.00055486,120]
[358199251,1744830646558,-151.0,0.00055486,120]
[358199253,1744830646567,-151.0,0.00055486,90]
[358199255,1744830646576,-151.0,0.00055486,120]
[358199257,1744830646586,-151.0,0.00055486,120]
[358199259,1744830646595,-408.25339917,0.00055486,14]
[358199261,1744830646607,-500.0,0.00055486,120]
[358199263,1744830646620,-500.0,0.00055486,120]
[358199265,1744830646630,-151.0,0.00055486,120]
[358199267,1744830646640,-500.0,0.00055486,120]
[358199269,1744830646650,-151.0,0.00055486,120]
[358199271,1744830646660,-500.0,0.00055486,120]
[358199273,1744830646669,-500.0,0.00055486,120]
[358199275,1744830646678,-500.0,0.00055486,120]
[358199277,1744830646689,-500.0,0.00055486,120]
[358199279,1744830646699,-500.0,0.00055486,120]
[358199281,1744830646708,-514.93,0.00055486,120]
[358199283,1744830646717,-500.0,0.00055486,120]
[358199285,1744830646727,-500.0,0.00055486,120]
[358199287,1744830646736,-500.0,0.00055486,120]
[358199289,1744830646745,-151.0,0.00055486,30]
[358199291,1744830646755,-151.0,0.00055486,120]
[358199293,1744830646764,-151.0,0.00055486,120]
[358199295,1744830646774,-151.0,0.00055486,120]
[358199297,1744830646783,-368.849452,0.00055486,120]
[358199299,1744830646793,-251.32026873,0.00055486,120]
[358199302,1744830646807,-500.0,0.00055486,120]
[358199303,1744830646816,-500.0,0.00055486,120]
[358199305,1744830646826,-151.0,0.00055486,120]
[358199308,1744830646836,-156.244295,0.00055486,120]
[358199309,1744830646846,-220.371769,0.00055486,120]
[358199311,1744830646856,-500.0,0.00055486,120]
[358199313,1744830646866,-500.0,0.00055486,120]
[358199315,1744830646875,-500.0,0.00055486,120]
[358199317,1744830646884,-281.795777,0.00055486,120]
[358199319,1744830646894,-295.005798,0.00055486,120]
[358199321,1744830646903,-295.005798,0.00055486,120]
[358199323,1744830646913,-151.0,0.00055486,120]
[358199325,1744830646922,-151.0,0.00055486,120]
[358199327,1744830646931,-500.0,0.00055486,120]
[358199329,1744830646941,-500.0,0.00055486,120]
[358199331,1744830646951,-666.2,0.00055486,120]
[358199333,1744830646960,-666.2,0.00055486,120]
[358199336,1744830646969,-150.0,0.00055486,14]
[358199337,1744830646978,-500.0,0.00055486,120]
[358199339,1744830646987,-500.0,0.00055486,120]
[358199341,1744830646996,-288.970482,0.00055486,120]
[358199344,1744830647006,-151.0,0.00055486,120]
[358199345,1744830647015,-288.970482,0.00055486,120]
[358199347,1744830647025,-151.0,0.00055486,120]
[358199349,1744830647034,-151.0,0.00055486,120]
[358199351,1744830647043,-151.0,0.00055486,120]
[358199353,1744830647055,-151.0,0.00055486,120]
[358199355,1744830647065,-151.0,0.00055486,120]
[358199357,1744830647075,-151.0,0.00055486,120]
[358199359,1744830647084,-151.0,0.00055486,120]
[358199361,1744830647093,-151.0,0.00055486,120]
[358199363,1744830647103,-151.0,0.00055486,120]
[358199365,1744830647114,-151.0,0.00055486,120]
[358199367,1744830647123,-151.0,0.00055486,120]
[358199369,1744830647132,-500.0,0.00055486,120]
[358199371,1744830647142,-151.0,0.00055486,120]
[358199372,1744830647152,-252.456035,0.00055486,120]
[358199374,1744830647161,-500.0,0.00055486,120]
[358199376,1744830647171,-151.0,0.00055486,120]
[358199377,1744830647180,-151.0,0.00055486,120]
[358199379,1744830647190,-227.077897,0.00055486,120]
[358199381,1744830647199,-227.077897,0.00055486,120]
[358199382,1744830647209,-151.0,0.00055486,120]
[358199384,1744830647219,-273.8245,0.00055486,120]
[358199386,1744830647228,-273.8245,0.00055486,120]
[358199387,1744830647238,-151.0,0.00055486,120]
[358199389,1744830647247,-151.0,0.00055486,120]
[358199391,1744830647256,-151.0,0.00055486,120]
[358199392,1744830647266,-2341.209607,0.00055486,120]
[358199394,1744830647276,-2341.209607,0.00055486,120]
[358199395,1744830647286,-151.0,0.00055486,120]
[358199397,1744830647295,-151.0,0.00055486,120]
[358199399,1744830647306,-151.0,0.00055486,120]
[358199401,1744830647315,-500.0,0.00055486,120]
[358199402,1744830647324,-500.0,0.00055486,120]
[358199404,1744830647334,-500.0,0.00055487,120]
[358199405,1744830647344,-1192.3,0.00055487,120]
[358199407,1744830647354,-1579.3,0.00055487,120]